[Event "Early-Titled-Tuesday-Blitz-April-23-2024"]
[Site "Chess.com"]
[Date "2024.04.23"]
[Round "6"]
[White "stratacticos"]
[Black "kai_nov"]
[Result "1-0"]
[WhiteElo "1866"]
[BlackElo "2267"]
[TimeControl "180+1"]
[EndTime "9:09:21 PDT"]
[Termination "stratacticos won by checkmate"]

1. b4 {[%clk 0:03:00.9]} 1... e5 {[%clk 0:02:58.4]} 2. Bb2 {[%clk 0:03:00.2]}
2... Bxb4 {[%clk 0:02:56.4]} 3. Bxe5 {[%clk 0:02:59.4]} 3... Nf6 {[%clk
0:02:56.2]} 4. a3 {[%clk 0:02:58.5]} 4... Be7 {[%clk 0:02:55.3]} 5. Nf3 {[%clk
0:02:56.8]} 5... Nc6 {[%clk 0:02:52.4]} 6. Bb2 {[%clk 0:02:55.7]} 6... d5 {[%clk
0:02:51.3]} 7. e3 {[%clk 0:02:55.2]} 7... Bg4 {[%clk 0:02:51.2]} 8. h3 {[%clk
0:02:53.9]} 8... Bxf3 {[%clk 0:02:49.1]} 9. Qxf3 {[%clk 0:02:53]} 9... O-O
{[%clk 0:02:49.4]} 10. g4 {[%clk 0:02:40.7]} 10... Ne4 {[%clk 0:02:35]} 11. d3
{[%clk 0:02:17.7]} 11... Nd6 {[%clk 0:01:52]} 12. Qxd5 {[%clk 0:02:03.9]} 12...
Bh4 {[%clk 0:01:47.9]} 13. Bg2 {[%clk 0:01:50.9]} 13... Re8 {[%clk 0:01:35.8]}
14. O-O {[%clk 0:01:49.4]} 14... Bf6 {[%clk 0:01:31.8]} 15. Bxf6 {[%clk
0:01:39.5]} 15... Qxf6 {[%clk 0:01:29.3]} 16. Nd2 {[%clk 0:01:39.2]} 16... Re5
{[%clk 0:01:12]} 17. Qf3 {[%clk 0:01:38.3]} 17... Qe7 {[%clk 0:01:06]} 18. d4
{[%clk 0:01:31]} 18... Rb5 {[%clk 0:01:01.8]} 19. c4 {[%clk 0:01:29.6]} 19...
Rb2 {[%clk 0:00:59.1]} 20. Ne4 {[%clk 0:01:13.6]} 20... Nxe4 {[%clk 0:00:54.8]}
21. Qxe4 {[%clk 0:01:13.3]} 21... Qh4 {[%clk 0:00:53.5]} 22. Rab1 {[%clk
0:00:59]} 22... Rxb1 {[%clk 0:00:47.5]} 23. Rxb1 {[%clk 0:00:58.2]} 23... Na5
{[%clk 0:00:47.5]} 24. Rb5 {[%clk 0:00:55.1]} 24... Nxc4 {[%clk 0:00:42.9]} 25.
Rh5 {[%clk 0:00:54]} 25... Qd8 {[%clk 0:00:36.9]} 26. Qxh7+ {[%clk 0:00:51.7]}
26... Kf8 {[%clk 0:00:37.2]} 27. Qh8+ {[%clk 0:00:49.4]} 27... Ke7 {[%clk
0:00:37.8]} 28. Qxg7 {[%clk 0:00:49.2]} 28... Qd6 {[%clk 0:00:30.9]} 29. Qg5+
{[%clk 0:00:41.2]} 29... Qf6 {[%clk 0:00:23.4]} 30. Qxf6+ {[%clk 0:00:39.1]}
30... Kxf6 {[%clk 0:00:22.4]} 31. Bxb7 {[%clk 0:00:38.3]} 31... Rb8 {[%clk
0:00:22.2]} 32. Bd5 {[%clk 0:00:28.9]} 32... Nxa3 {[%clk 0:00:22]} 33. Rf5+
{[%clk 0:00:27.9]} 33... Kg6 {[%clk 0:00:20.5]} 34. Bxf7+ {[%clk 0:00:26.1]}
34... Kg7 {[%clk 0:00:19.7]} 35. h4 {[%clk 0:00:24.5]} 35... Rb1+ {[%clk
0:00:16]} 36. Kg2 {[%clk 0:00:23.8]} 36... Nc2 {[%clk 0:00:15.9]} 37. Rf4 {[%clk
0:00:19]} 37... a5 {[%clk 0:00:15.6]} 38. g5 {[%clk 0:00:18.1]} 38... a4 {[%clk
0:00:14.9]} 39. h5 {[%clk 0:00:18.4]} 39... Rb3 {[%clk 0:00:08.1]} 40. h6+
{[%clk 0:00:15]} 40... Kh7 {[%clk 0:00:08.1]} 41. Bxb3 {[%clk 0:00:08.2]} 41...
axb3 {[%clk 0:00:08.3]} 42. Rf7+ {[%clk 0:00:09.1]} 42... Kg6 {[%clk 0:00:08.1]}
43. Rxc7 {[%clk 0:00:10]} 43... Kxg5 {[%clk 0:00:03.9]} 44. h7 {[%clk
0:00:09.2]} 44... b2 {[%clk 0:00:04.2]} 45. Rb7 {[%clk 0:00:08.9]} 45... Nxe3+
{[%clk 0:00:04.5]} 46. fxe3 {[%clk 0:00:08.6]} 46... Kf5 {[%clk 0:00:05.1]} 47.
h8=Q {[%clk 0:00:07.5]} 47... Ke4 {[%clk 0:00:05.7]} 48. Qh4+ {[%clk 0:00:06.3]}
48... Kd3 {[%clk 0:00:06]} 49. Qf4 {[%clk 0:00:07.2]} 49... Kc4 {[%clk
0:00:06.1]} 50. Rxb2 {[%clk 0:00:06.7]} 50... Kd3 {[%clk 0:00:06.4]} 51. Kf2
{[%clk 0:00:06]} 51... Kc4 {[%clk 0:00:06.6]} 52. Qc7+ {[%clk 0:00:05.8]} 52...
Kd3 {[%clk 0:00:06.9]} 53. Qc2# {[%clk 0:00:05.7]} 1-0

[Event "Early-Titled-Tuesday-Blitz-April-23-2024"]
[Site "Chess.com"]
[Date "2024.04.23"]
[Round "6"]
[White "Balla_Tamas"]
[Black "Aleksandar-Topalov"]
[Result "0-1"]
[WhiteElo "2534"]
[BlackElo "2393"]
[TimeControl "180+1"]
[EndTime "9:09:26 PDT"]
[Termination "Aleksandar-Topalov won by checkmate"]

1. Nf3 {[%clk 0:03:00.9]} 1... Nf6 {[%clk 0:02:57.2]} 2. b3 {[%clk 0:03:01.2]}
2... g6 {[%clk 0:02:56.7]} 3. Bb2 {[%clk 0:03:01.5]} 3... Bg7 {[%clk 0:02:57]}
4. e3 {[%clk 0:03:02.1]} 4... O-O {[%clk 0:02:56.1]} 5. c4 {[%clk 0:03:02.4]}
5... c5 {[%clk 0:02:54.6]} 6. Nc3 {[%clk 0:03:02.2]} 6... Nc6 {[%clk 0:02:52.6]}
7. d4 {[%clk 0:03:02.2]} 7... cxd4 {[%clk 0:02:51.5]} 8. exd4 {[%clk 0:03:03.1]}
8... d5 {[%clk 0:02:50.9]} 9. Be2 {[%clk 0:03:01.3]} 9... Bg4 {[%clk 0:02:45.1]}
10. c5 {[%clk 0:02:44.7]} 10... b6 {[%clk 0:02:26.5]} 11. O-O {[%clk 0:02:39.4]}
11... bxc5 {[%clk 0:02:24.4]} 12. dxc5 {[%clk 0:02:40.3]} 12... Ne4 {[%clk
0:02:23.1]} 13. Qc2 {[%clk 0:02:36.7]} 13... Nxc5 {[%clk 0:02:13.3]} 14. h3
{[%clk 0:02:22.4]} 14... Bxf3 {[%clk 0:02:12.3]} 15. Bxf3 {[%clk 0:02:23.3]}
15... Nd4 {[%clk 0:02:12.1]} 16. Qd1 {[%clk 0:02:21.3]} 16... Nxf3+ {[%clk
0:02:11.3]} 17. Qxf3 {[%clk 0:02:22.2]} 17... Ne4 {[%clk 0:02:04.1]} 18. Rad1
{[%clk 0:02:14.7]} 18... Nxc3 {[%clk 0:01:58.1]} 19. Bxc3 {[%clk 0:02:15.6]}
19... Bxc3 {[%clk 0:01:57.8]} 20. Qxc3 {[%clk 0:02:16.5]} 20... e6 {[%clk
0:01:57.9]} 21. Rfe1 {[%clk 0:02:14.1]} 21... Rc8 {[%clk 0:01:57.5]} 22. Qe5
{[%clk 0:02:13.5]} 22... Qa5 {[%clk 0:01:53.2]} 23. Re2 {[%clk 0:02:09.6]} 23...
Qc3 {[%clk 0:01:45.8]} 24. Qg5 {[%clk 0:02:04.3]} 24... Kg7 {[%clk 0:01:37.7]}
25. Rde1 {[%clk 0:01:54.4]} 25... Qf6 {[%clk 0:01:31.6]} 26. Qe3 {[%clk
0:01:53.3]} 26... a5 {[%clk 0:01:30.5]} 27. Qd3 {[%clk 0:01:51.5]} 27... Qc3
{[%clk 0:01:19.5]} 28. Qa6 {[%clk 0:01:50.9]} 28... Rc6 {[%clk 0:01:14.6]} 29.
Qb7 {[%clk 0:01:45.6]} 29... Rfc8 {[%clk 0:01:12.3]} 30. Re3 {[%clk 0:01:37.4]}
30... Qb4 {[%clk 0:01:07]} 31. Qa7 {[%clk 0:01:30.9]} 31... R6c7 {[%clk
0:01:01.9]} 32. Qa6 {[%clk 0:01:29.7]} 32... Rc6 {[%clk 0:00:59]} 33. Qd3 {[%clk
0:01:14.7]} 33... Rc1 {[%clk 0:00:55.8]} 34. Kf1 {[%clk 0:01:04.3]} 34... a4
{[%clk 0:00:54.4]} 35. bxa4 {[%clk 0:00:50.5]} 35... Qxa4 {[%clk 0:00:48.3]} 36.
Qd2 {[%clk 0:00:50.3]} 36... R1c2 {[%clk 0:00:45]} 37. Qd3 {[%clk 0:00:45.1]}
37... Qxa2 {[%clk 0:00:44.9]} 38. Rf3 {[%clk 0:00:44.1]} 38... Qc4 {[%clk
0:00:41.2]} 39. Qxc4 {[%clk 0:00:40.3]} 39... R8xc4 {[%clk 0:00:40.8]} 40. Kg1
{[%clk 0:00:40.9]} 40... g5 {[%clk 0:00:34.3]} 41. Kh2 {[%clk 0:00:39.4]} 41...
h6 {[%clk 0:00:33.2]} 42. Rb1 {[%clk 0:00:39]} 42... Kg6 {[%clk 0:00:27.9]} 43.
Rb8 {[%clk 0:00:38.7]} 43... Rf4 {[%clk 0:00:26.1]} 44. Rxf4 {[%clk 0:00:37.6]}
44... gxf4 {[%clk 0:00:25.3]} 45. Kg1 {[%clk 0:00:38.1]} 45... e5 {[%clk
0:00:19]} 46. Kf1 {[%clk 0:00:38.3]} 46... Kf5 {[%clk 0:00:16.6]} 47. Rd8 {[%clk
0:00:38.4]} 47... d4 {[%clk 0:00:16]} 48. Rd6 {[%clk 0:00:35.5]} 48... f6 {[%clk
0:00:15.6]} 49. f3 {[%clk 0:00:33.1]} 49... Kg5 {[%clk 0:00:12.5]} 50. Rd8
{[%clk 0:00:32.9]} 50... Rb2 {[%clk 0:00:10.2]} 51. Rg8+ {[%clk 0:00:32.9]}
51... Kf5 {[%clk 0:00:09.8]} 52. Rd8 {[%clk 0:00:33.2]} 52... Ke6 {[%clk
0:00:09.6]} 53. h4 {[%clk 0:00:33]} 53... f5 {[%clk 0:00:09.2]} 54. h5 {[%clk
0:00:33.2]} 54... Rd2 {[%clk 0:00:07.7]} 55. Ra8 {[%clk 0:00:32.6]} 55... e4
{[%clk 0:00:07.3]} 56. Ra6+ {[%clk 0:00:32.3]} 56... Ke5 {[%clk 0:00:06.7]} 57.
Rxh6 {[%clk 0:00:31.9]} 57... d3 {[%clk 0:00:05.9]} 58. Rh8 {[%clk 0:00:30.7]}
58... e3 {[%clk 0:00:06.2]} 59. Kg1 {[%clk 0:00:29.7]} 59... Rd1+ {[%clk
0:00:06.3]} 60. Kh2 {[%clk 0:00:30.2]} 60... e2 {[%clk 0:00:06.8]} 61. Re8+
{[%clk 0:00:30.5]} 61... Kd4 {[%clk 0:00:07.1]} 62. h6 {[%clk 0:00:30.8]} 62...
e1=Q {[%clk 0:00:07.1]} 63. Rd8+ {[%clk 0:00:26.6]} 63... Kc3 {[%clk 0:00:06.2]}
64. Rc8+ {[%clk 0:00:26.8]} 64... Kd2 {[%clk 0:00:06.1]} 65. h7 {[%clk
0:00:23.1]} 65... Qh4# {[%clk 0:00:05.9]} 0-1

[Event "Early-Titled-Tuesday-Blitz-April-23-2024"]
[Site "Chess.com"]
[Date "2024.04.23"]
[Round "6"]
[White "kiwibobo"]
[Black "FuenfgegenWilly"]
[Result "0-1"]
[WhiteElo "2313"]
[BlackElo "2489"]
[TimeControl "180+1"]
[EndTime "9:09:26 PDT"]
[Termination "FuenfgegenWilly won by resignation"]

1. e4 {[%clk 0:03:00.4]} 1... e5 {[%clk 0:02:57.7]} 2. Nf3 {[%clk 0:03:00.7]}
2... Nc6 {[%clk 0:02:57.8]} 3. Bb5 {[%clk 0:03:01.4]} 3... Nge7 {[%clk
0:02:56.7]} 4. O-O {[%clk 0:03:00.3]} 4... a6 {[%clk 0:02:57]} 5. Ba4 {[%clk
0:03:00.4]} 5... g6 {[%clk 0:02:57]} 6. c3 {[%clk 0:03:00.1]} 6... Bg7 {[%clk
0:02:57.1]} 7. d4 {[%clk 0:03:00]} 7... b5 {[%clk 0:02:57.1]} 8. Bc2 {[%clk
0:02:51.5]} 8... exd4 {[%clk 0:02:55.6]} 9. cxd4 {[%clk 0:02:52.1]} 9... d5
{[%clk 0:02:56]} 10. exd5 {[%clk 0:02:52.6]} 10... Nxd5 {[%clk 0:02:54.3]} 11.
Bg5 {[%clk 0:02:51.4]} 11... Qd6 {[%clk 0:02:49.1]} 12. Nbd2 {[%clk 0:02:51.6]}
12... Ncb4 {[%clk 0:02:11.6]} 13. Ne4 {[%clk 0:02:47.9]} 13... Qb6 {[%clk
0:02:11.1]} 14. Bb3 {[%clk 0:02:46.1]} 14... Be6 {[%clk 0:01:57.6]} 15. Nc5
{[%clk 0:02:34.6]} 15... O-O {[%clk 0:01:46.3]} 16. a3 {[%clk 0:02:31]} 16...
Nc6 {[%clk 0:01:42.4]} 17. Bxd5 {[%clk 0:02:30.6]} 17... Bxd5 {[%clk 0:01:36]}
18. Nd7 {[%clk 0:02:31.1]} 18... Qb7 {[%clk 0:01:32.9]} 19. Nxf8 {[%clk
0:02:31]} 19... Rxf8 {[%clk 0:01:32.9]} 20. Re1 {[%clk 0:02:16.5]} 20... Na5
{[%clk 0:01:32.7]} 21. Rc1 {[%clk 0:02:10.3]} 21... Nc4 {[%clk 0:01:26.4]} 22.
Qe2 {[%clk 0:02:02]} 22... Bxf3 {[%clk 0:00:53.6]} 23. Qxf3 {[%clk 0:02:00.4]}
23... Qxf3 {[%clk 0:00:53.1]} 24. gxf3 {[%clk 0:02:01.3]} 24... Bxd4 {[%clk
0:00:52.9]} 25. b3 {[%clk 0:02:00.7]} 25... Nxa3 {[%clk 0:00:51.1]} 26. Rxc7
{[%clk 0:01:20.1]} 26... a5 {[%clk 0:00:47.4]} 27. Be7 {[%clk 0:01:19.6]} 27...
Re8 {[%clk 0:00:36.4]} 28. Rd1 {[%clk 0:01:19.9]} 28... Bb6 {[%clk 0:00:28.5]}
29. Rb7 {[%clk 0:01:19.6]} 29... b4 {[%clk 0:00:15.6]} 30. Bxb4 {[%clk
0:01:12.5]} 30... axb4 {[%clk 0:00:06]} 31. Rxb6 {[%clk 0:01:13]} 31... Nc2
{[%clk 0:00:05.6]} 32. Rc1 {[%clk 0:01:05.5]} 32... Re2 {[%clk 0:00:04.6]} 33.
Rxb4 {[%clk 0:01:03]} 33... Nxb4 {[%clk 0:00:04.1]} 34. Rc4 {[%clk 0:01:01.6]}
34... Nc2 {[%clk 0:00:03.3]} 35. Kf1 {[%clk 0:01:00.1]} 35... Re1+ {[%clk
0:00:03.2]} 36. Kg2 {[%clk 0:01:00.2]} 36... Na1 {[%clk 0:00:02.8]} 37. b4
{[%clk 0:00:57.8]} 37... Kg7 {[%clk 0:00:03.7]} 38. b5 {[%clk 0:00:57.3]} 38...
Rb1 {[%clk 0:00:04.4]} 39. Ra4 {[%clk 0:00:57.9]} 39... Nc2 {[%clk 0:00:04.6]}
40. Rc4 {[%clk 0:00:55.1]} 40... Ne1+ {[%clk 0:00:04.5]} 41. Kg3 {[%clk
0:00:54.5]} 41... Rxb5 {[%clk 0:00:03.6]} 42. Rc3 {[%clk 0:00:55.1]} 42... Re5
{[%clk 0:00:03.2]} 43. f4 {[%clk 0:00:53]} 43... Re2 {[%clk 0:00:03.4]} 44. h3
{[%clk 0:00:51.3]} 44... Nc2 {[%clk 0:00:03.5]} 45. Rd3 {[%clk 0:00:50.4]} 45...
Nb4 {[%clk 0:00:02.8]} 46. Rb3 {[%clk 0:00:50.4]} 46... Nc6 {[%clk 0:00:03.2]}
47. Rc3 {[%clk 0:00:50.6]} 47... Ne7 {[%clk 0:00:03.4]} 48. Rd3 {[%clk
0:00:50.4]} 48... Re6 {[%clk 0:00:04.3]} 49. Rc3 {[%clk 0:00:50.1]} 49... Nf5+
{[%clk 0:00:05.2]} 50. Kf3 {[%clk 0:00:50]} 50... Rf6 {[%clk 0:00:06.1]} 51. Rc4
{[%clk 0:00:49.5]} 51... h5 {[%clk 0:00:07]} 52. Ra4 {[%clk 0:00:49.5]} 52...
Re6 {[%clk 0:00:07.9]} 53. Rb4 {[%clk 0:00:49]} 53... Kf6 {[%clk 0:00:08.8]} 54.
Ra4 {[%clk 0:00:49.2]} 54... Kg7 {[%clk 0:00:09.7]} 55. Rb4 {[%clk 0:00:49.6]}
55... Re8 {[%clk 0:00:10.3]} 56. Ra4 {[%clk 0:00:49.2]} 56... Rh8 {[%clk
0:00:11.2]} 57. Rb4 {[%clk 0:00:49.4]} 57... Rh7 {[%clk 0:00:11.9]} 58. Ra4
{[%clk 0:00:49.9]} 58... Rh8 {[%clk 0:00:12.8]} 59. Rb4 {[%clk 0:00:49.9]} 59...
Rg8 {[%clk 0:00:13.7]} 60. Ra4 {[%clk 0:00:50.5]} 60... Rb8 {[%clk 0:00:14]} 61.
Rc4 {[%clk 0:00:50.7]} 61... Rb3+ {[%clk 0:00:14.1]} 62. Kg2 {[%clk 0:00:50.5]}
62... Nh4+ {[%clk 0:00:14.5]} 63. Kh2 {[%clk 0:00:50.8]} 63... Nf5 {[%clk
0:00:14.5]} 64. Kg2 {[%clk 0:00:50.8]} 64... h4 {[%clk 0:00:15]} 65. Ra4 {[%clk
0:00:50.5]} 65... Ne7 {[%clk 0:00:14.5]} 66. Rc4 {[%clk 0:00:50.3]} 66... Ng8
{[%clk 0:00:14.8]} 67. Ra4 {[%clk 0:00:50.7]} 67... Nf6 {[%clk 0:00:15.1]} 68.
Rc4 {[%clk 0:00:51.4]} 68... Nh5 {[%clk 0:00:15.4]} 69. Ra4 {[%clk 0:00:51.1]}
69... f5 {[%clk 0:00:15.5]} 70. Ra7+ {[%clk 0:00:50]} 70... Kh6 {[%clk 0:00:16]}
71. Ra4 {[%clk 0:00:49.9]} 71... Rb2 {[%clk 0:00:16.1]} 72. Rc4 {[%clk 0:00:50]}
72... Re2 {[%clk 0:00:15.8]} 73. Ra4 {[%clk 0:00:50.4]} 73... Re4 {[%clk
0:00:16]} 74. Ra6 {[%clk 0:00:46.7]} 74... Nxf4+ {[%clk 0:00:15.5]} 75. Kh2
{[%clk 0:00:47.3]} 75... Nh5 {[%clk 0:00:15.5]} 76. Kg2 {[%clk 0:00:47.1]} 76...
Kg5 {[%clk 0:00:15.5]} 77. Rb6 {[%clk 0:00:46.7]} 77... Nf4+ {[%clk 0:00:15.4]}
78. Kh2 {[%clk 0:00:47]} 78... Re2 {[%clk 0:00:15.7]} 79. Kg1 {[%clk 0:00:45.8]}
79... Re1+ {[%clk 0:00:15.5]} 80. Kh2 {[%clk 0:00:46]} 80... Rf1 {[%clk
0:00:15.3]} 81. Rb2 {[%clk 0:00:45.3]} 81... Nd3 {[%clk 0:00:15]} 82. Rd2 {[%clk
0:00:45.4]} 82... Rxf2+ {[%clk 0:00:14.5]} 0-1

[Event "Early-Titled-Tuesday-Blitz-April-23-2024"]
[Site "Chess.com"]
[Date "2024.04.23"]
[Round "6"]
[White "sathvikadiga"]
[Black "DonkyDonkyDonkey"]
[Result "0-1"]
[WhiteElo "2621"]
[BlackElo "2925"]
[TimeControl "180+1"]
[EndTime "9:09:30 PDT"]
[Termination "DonkyDonkyDonkey won by checkmate"]

1. e4 {[%clk 0:03:00.9]} 1... e5 {[%clk 0:03:00.3]} 2. Nf3 {[%clk 0:03:01.3]}
2... d5 {[%clk 0:03:01]} 3. Nxe5 {[%clk 0:02:58.2]} 3... Bd6 {[%clk 0:03:00.6]}
4. d4 {[%clk 0:02:57.1]} 4... dxe4 {[%clk 0:03:00.9]} 5. Nc3 {[%clk 0:02:57.7]}
5... Bxe5 {[%clk 0:03:00.2]} 6. dxe5 {[%clk 0:02:58.6]} 6... Qxd1+ {[%clk
0:03:01]} 7. Nxd1 {[%clk 0:02:59.5]} 7... Nc6 {[%clk 0:03:01.5]} 8. Nc3 {[%clk
0:02:58.7]} 8... Bf5 {[%clk 0:03:00.9]} 9. Bf4 {[%clk 0:02:58.7]} 9... Nge7
{[%clk 0:03:00.8]} 10. O-O-O {[%clk 0:02:54.4]} 10... O-O {[%clk 0:03:00.7]} 11.
Re1 {[%clk 0:02:52.3]} 11... Ng6 {[%clk 0:02:59.6]} 12. Bg3 {[%clk 0:02:51.6]}
12... Ncxe5 {[%clk 0:02:55.4]} 13. Nxe4 {[%clk 0:02:51]} 13... Rfe8 {[%clk
0:02:55.3]} 14. f3 {[%clk 0:02:44]} 14... a6 {[%clk 0:02:49.8]} 15. h4 {[%clk
0:02:33.2]} 15... h5 {[%clk 0:02:40.4]} 16. Be2 {[%clk 0:01:52.2]} 16... Rad8
{[%clk 0:02:34.2]} 17. Rd1 {[%clk 0:01:47.2]} 17... Rxd1+ {[%clk 0:01:45.7]} 18.
Rxd1 {[%clk 0:01:46.1]} 18... Bxe4 {[%clk 0:01:46.6]} 19. fxe4 {[%clk
0:01:46.6]} 19... Ng4 {[%clk 0:01:45.4]} 20. Bf3 {[%clk 0:00:53.2]} 20... N6e5
{[%clk 0:01:43.6]} 21. Bxe5 {[%clk 0:00:43.6]} 21... Rxe5 {[%clk 0:01:44.5]} 22.
Rd7 {[%clk 0:00:43.6]} 22... Rc5 {[%clk 0:01:39.5]} 23. c3 {[%clk 0:00:32.3]}
23... g6 {[%clk 0:01:29.2]} 24. Kd2 {[%clk 0:00:29]} 24... Ne5 {[%clk
0:01:28.2]} 25. Rd8+ {[%clk 0:00:29.5]} 25... Kg7 {[%clk 0:01:28.7]} 26. b3
{[%clk 0:00:29.1]} 26... Rc6 {[%clk 0:01:25.8]} 27. Rb8 {[%clk 0:00:20.4]} 27...
b6 {[%clk 0:01:20.5]} 28. c4 {[%clk 0:00:19.8]} 28... a5 {[%clk 0:01:19.7]} 29.
Ke3 {[%clk 0:00:16.4]} 29... Rd6 {[%clk 0:01:18.8]} 30. Re8 {[%clk 0:00:16.2]}
30... Kf6 {[%clk 0:01:17.1]} 31. Kf4 {[%clk 0:00:14.9]} 31... Re6 {[%clk
0:01:16.7]} 32. Rd8 {[%clk 0:00:12.7]} 32... Ke7 {[%clk 0:01:14.3]} 33. Rd5
{[%clk 0:00:11.9]} 33... f6 {[%clk 0:01:12.2]} 34. Rd4 {[%clk 0:00:12.5]} 34...
Rd6 {[%clk 0:01:10.1]} 35. Rd5 {[%clk 0:00:11.1]} 35... c6 {[%clk 0:01:08.7]}
36. Rxd6 {[%clk 0:00:10]} 36... Kxd6 {[%clk 0:01:09.6]} 37. g4 {[%clk
0:00:05.9]} 37... hxg4 {[%clk 0:01:09.2]} 38. Bxg4 {[%clk 0:00:06.8]} 38... Nxg4
{[%clk 0:00:46.7]} 39. Kxg4 {[%clk 0:00:07.7]} 39... Ke5 {[%clk 0:00:47.5]} 40.
Kf3 {[%clk 0:00:07.7]} 40... Kd4 {[%clk 0:00:47.6]} 41. Kf4 {[%clk 0:00:06.9]}
41... b5 {[%clk 0:00:45.3]} 42. cxb5 {[%clk 0:00:06.1]} 42... cxb5 {[%clk
0:00:46.2]} 43. Kf3 {[%clk 0:00:03.5]} 43... a4 {[%clk 0:00:21.4]} 44. bxa4
{[%clk 0:00:02.7]} 44... bxa4 {[%clk 0:00:22.3]} 45. a3 {[%clk 0:00:02.9]} 45...
Kc4 {[%clk 0:00:18.8]} 46. Kf4 {[%clk 0:00:03.3]} 46... Kb3 {[%clk 0:00:18]} 47.
e5 {[%clk 0:00:03.8]} 47... fxe5+ {[%clk 0:00:18.4]} 48. Kxe5 {[%clk 0:00:03.8]}
48... Kxa3 {[%clk 0:00:18.6]} 49. Kf6 {[%clk 0:00:04.7]} 49... Kb3 {[%clk
0:00:18.2]} 50. Kxg6 {[%clk 0:00:05.6]} 50... a3 {[%clk 0:00:19.1]} 51. h5
{[%clk 0:00:06.5]} 51... a2 {[%clk 0:00:19.9]} 52. h6 {[%clk 0:00:07.4]} 52...
a1=Q {[%clk 0:00:20.7]} 53. h7 {[%clk 0:00:08.3]} 53... Qh8 {[%clk 0:00:20.6]}
54. Kh6 {[%clk 0:00:09.2]} 54... Kc4 {[%clk 0:00:20.8]} 55. Kg6 {[%clk
0:00:10.1]} 55... Kd5 {[%clk 0:00:21.7]} 56. Kh6 {[%clk 0:00:11]} 56... Ke6
{[%clk 0:00:22.6]} 57. Kg6 {[%clk 0:00:11.9]} 57... Ke7 {[%clk 0:00:23.2]} 58.
Kh6 {[%clk 0:00:12.6]} 58... Kf7 {[%clk 0:00:24.1]} 59. Kh5 {[%clk 0:00:13.5]}
59... Qxh7+ {[%clk 0:00:24.5]} 60. Kg4 {[%clk 0:00:14.4]} 60... Qe4+ {[%clk
0:00:23.9]} 61. Kg5 {[%clk 0:00:14.4]} 61... Qe5+ {[%clk 0:00:24.1]} 62. Kg4
{[%clk 0:00:14.4]} 62... Kg6 {[%clk 0:00:24.3]} 63. Kf3 {[%clk 0:00:15.3]} 63...
Qd4 {[%clk 0:00:24.6]} 64. Kg3 {[%clk 0:00:15.3]} 64... Qe4 {[%clk 0:00:25.1]}
65. Kf2 {[%clk 0:00:15.1]} 65... Qd3 {[%clk 0:00:25.4]} 66. Kg2 {[%clk
0:00:14.4]} 66... Qe3 {[%clk 0:00:25.5]} 67. Kh2 {[%clk 0:00:15.3]} 67... Qf3
{[%clk 0:00:25.8]} 68. Kg1 {[%clk 0:00:16.2]} 68... Qe2 {[%clk 0:00:26.3]} 69.
Kh1 {[%clk 0:00:17.1]} 69... Kf5 {[%clk 0:00:27.2]} 70. Kg1 {[%clk 0:00:18]}
70... Kg4 {[%clk 0:00:28.1]} 71. Kh1 {[%clk 0:00:18.9]} 71... Kg3 {[%clk
0:00:29]} 72. Kg1 {[%clk 0:00:19.8]} 72... Qe1# {[%clk 0:00:29.7]} 0-1